lending/lending_fUSD_20250621
["ID","MTS","AMOUNT","RATE_DAILY","PERIOD"]
[366836245,1750498253382,-470.446579,0.000238,7]
[366836246,1750498253391,-470.446579,0.000238,7]
[366836247,1750498253400,-470.446579,0.000238,7]
[366836248,1750498253409,-275.394411,0.000238,7]
[366836249,1750498253418,-275.394411,0.000238,7]
[366836250,1750498253427,-275.394411,0.000238,7]
[366836251,1750498253436,-275.394411,0.000238,7]
[366836252,1750498253445,-262.088657,0.000238,7]
[366836253,1750498253455,-262.088657,0.000238,7]
[366836254,1750498253464,-209.459053,0.000238,7]
[366836255,1750498253474,-209.45905,0.000238,7]
[366836256,1750498253484,-185.069723,0.000238,7]
[366836257,1750498253493,-230.019122,0.000238,7]
[366836258,1750498253503,-760.323547,0.000238,7]
[366836259,1750498253512,-760.323545,0.000238,7]
[366836260,1750498253522,-286.845029,0.000238,7]
[366836261,1750498253531,-286.845029,0.000238,7]
[366836262,1750498253540,-151.0,0.000238,7]
[366836263,1750498253550,-526.807479,0.000238,7]
[366836264,1750498253559,-526.807479,0.000238,7]
[366836265,1750498253568,-151.0,0.000238,7]
[366836266,1750498253578,-151.0,0.000238,7]
[366836267,1750498253587,-151.585203,0.000238,7]
[366836268,1750498253597,-151.0,0.000238,7]
[366836269,1750498253606,-151.0,0.000238,7]
[366836270,1750498253615,-417.053784,0.000238,7]
[366836271,1750498253625,-417.053784,0.000238,7]
[366836272,1750498253634,-152.674693,0.000238,7]
[366836273,1750498253644,-151.0,0.000238,7]
[366836274,1750498253654,-151.0,0.000238,7]
[366836275,1750498253667,-153.391427,0.000238,7]
[366836276,1750498253677,-151.0,0.000238,7]
[366836277,1750498253686,-158.60537,0.000238,7]
[366836278,1750498253697,-158.60537,0.000238,7]
[366836279,1750498253707,-151.0,0.000238,7]
[366836280,1750498253716,-151.0,0.000238,7]
[366836281,1750498253728,-151.0,0.000238,7]
[366836282,1750498253737,-239.264908,0.000238,7]
[366836283,1750498253747,-151.0,0.000238,7]
[366836284,1750498253757,-151.0,0.000238,7]
[366836285,1750498253766,-151.0,0.000238,7]
[366836286,1750498253776,-151.0,0.000238,7]
[366836287,1750498253786,-301.547147,0.000238,7]
[366836288,1750498253796,-999.53557,0.000238,7]
[366836289,1750498253806,-999.53557,0.000238,7]
[366836290,1750498253815,-255.078104,0.000238,7]
[366836291,1750498253825,-255.078104,0.000238,7]
[366836292,1750498253838,-151.0,0.000238,7]
[366836293,1750498253848,-186.576726,0.000238,7]
[366836294,1750498253859,-186.576726,0.000238,7]
[366836295,1750498253869,-371.056386,0.000238,7]
[366836296,1750498253880,-371.056386,0.000238,7]
[366836297,1750498253890,-151.0,0.000238,7]
[366836298,1750498253900,-151.0,0.000238,7]
[366836299,1750498253909,-155.707627,0.000238,7]
[366836300,1750498253919,-228.576207,0.000238,7]
[366836301,1750498253929,-228.576207,0.000238,7]
[366836302,1750498253940,-402.262546,0.000238,7]
[366836303,1750498253949,-402.262546,0.000238,7]
[366836304,1750498253959,-1045.09659,0.000238,7]
[366836305,1750498253970,-1045.09659,0.000238,7]
[366836306,1750498253980,-151.0,0.000238,7]
[366836307,1750498253990,-151.0,0.000238,7]
[366836308,1750498254001,-151.0,0.000238,7]
[366836309,1750498254011,-268.163362,0.000238,7]
[366836310,1750498254020,-268.163362,0.000238,7]
[366836311,1750498254030,-151.0,0.000238,7]
[366836312,1750498254040,-150.0,0.00023801,2]
[366836313,1750498254049,-370.89,0.00023836,2]
[366836314,1750498254059,-279.62,0.00023836,2]
[366836315,1750498254069,-150.0,0.00023837,2]
[366836316,1750498254078,-150.0,0.00023858,2]
[366836317,1750498254088,-150.0,0.00023895,2]
[366836318,1750498254097,-150.0,0.00023901,2]
[366836319,1750498254107,-150.0,0.00023905,2]
[366836320,1750498254117,-150.0,0.00023924,2]
[366836321,1750498254127,-1000.0,0.00023926,2]
[366836322,1750498254137,-150.0,0.00023948,2]
[366836323,1750498254147,-494.44858763,0.0002395,2]
[366836324,1750498254156,-150.0,0.00023961,2]
[366836325,1750498254167,-150.0,0.00023985,2]
[366836326,1750498254179,-150.0,0.00023989,2]
[366836327,1750498254189,-150.0,0.00023997,2]
[366836328,1750498254199,-17383.76,0.00024,2]
[366836329,1750498254209,-157.689711,0.00024,7]
[366836330,1750498254220,-157.689711,0.00024,7]
[366836331,1750498254231,-348.781815,0.00024,7]
[366836332,1750498254241,-348.781815,0.00024,7]
[366836333,1750498254252,-11968.20830238,0.00024,2]
[366836334,1750498254262,-151.0,0.00024,7]
[366836335,1750498254271,-4171.0191354,0.00024,5]
[366836336,1750498255285,-324.15296751,0.00024,5]
[366836351,1750498654061,150.0,0.00011501,2]
[366836375,1750498980408,448.0,0.0002465,120]
[366836376,1750498983592,385.0,0.0002465,120]
[366836377,1750499048234,300.0,0.00024657,120]
[366836378,1750499240254,2000.0,0.00020801,120]
[366836424,1750499432286,-327.04,0.00013699,2]
[366836425,1750499432296,-1200.0,0.00014899,2]
[366836426,1750499432306,-3372.9599999,0.000149,2]
[366836427,1750499432318,-5633.59291808,0.000149,2]
[366836428,1750499432328,-43.40708192,0.00015,2]
[366836429,1750499432344,-206.59291808,0.00015,2]
[366836430,1750499432355,-300.0,0.00015067,2]
[366836431,1750499432364,-300.0,0.00015068,2]
[366836432,1750499432375,-250.0,0.00015068,2]
[366836433,1750499432384,-300.0,0.00015068,2]
[366836435,1750499432394,-250.0,0.00015068,2]
[366836436,1750499432404,-250.0,0.00015829,2]
[366836438,1750499432413,-1200.0,0.00016389,2]
[366836440,1750499432423,-310.0,0.00016489,2]
[366836441,1750499432432,-183.40708692,0.00018058,2]
[366836443,1750499432444,-116.59291308,0.00018058,2]
[366836444,1750499432455,-250.0,0.00018059,2]
[366836445,1750499432464,-733.40708692,0.00018059,2]
[366836447,1750499432476,-952.95291308,0.00018059,2]
[366836449,1750499432486,-151.0,0.00019178,2]
[366836451,1750499432495,-500.0,0.00019295,2]
[366836452,1750499432505,-300.0,0.00019701,2]
[366836453,1750499432515,-249.27514004,0.00019726,2]
[366836454,1750499432525,-500.0,0.00019865,2]
[366836456,1750499432535,-3500.0,0.0002,2]
[366836458,1750499432544,-300.0,0.0002,2]
[366836460,1750499432553,-2100.0,0.0002,2]
[366836462,1750499432563,-2096.77194688,0.000201,2]
[366836465,1750499432575,-153.14805312,0.000201,2]
[366836466,1750499432587,-275.0,0.00020187,2]
[366836469,1750499432596,-327.04,0.00020187,2]
[366836471,1750499432606,-597.0,0.00020333,2]
[366836473,1750499432616,-675.0,0.00020499,2]
[366836475,1750499432626,-150.99,0.00020499,2]
[366836476,1750499432635,-886.1,0.00020499,2]
[366836478,1750499432644,-408.62,0.00020499,2]
[366836480,1750499432654,-666.0,0.00020505,2]
[366836482,1750499432663,-533.44822165,0.00020529,2]
[366836484,1750499432673,-1100.0,0.0002053,2]
[366836486,1750499432683,-248.67,0.0002053,2]
[366836488,1750499432693,-302.82,0.0002053,2]
[366836490,1750499432702,-246.65,0.0002053,2]
[366836492,1750499432712,-252.42,0.0002053,2]
[366836494,1750499432722,-249.35,0.0002053,2]
[366836496,1750499432731,-251.49,0.0002053,2]
[366836498,1750499432741,-251.91,0.0002053,2]
[366836500,1750499432750,-301.08,0.0002053,2]
[366836502,1750499432759,-254.99,0.0002053,2]
[366836504,1750499432768,-151.0,0.0002053,2]
[366836506,1750499432778,-1957.856,0.0002053,2]
[366836508,1750499432786,-500.0,0.0002053,2]
[366836510,1750499432796,-500.0,0.0002053,2]
[366836512,1750499432805,-500.0,0.0002053,2]
[366836514,1750499432814,-500.0,0.0002053,2]
[366836516,1750499432824,-500.0,0.0002053,2]
[366836519,1750499432838,-500.0,0.0002053,2]
[366836521,1750499432848,-300.0,0.0002053,2]
[366836523,1750499432857,-151.0,0.0002053,2]
[366836525,1750499432866,-500.0,0.0002053,2]
[366836527,1750499432876,-300.0,0.0002053,2]
[366836529,1750499432885,-151.0,0.0002053,2]
[366836531,1750499432896,-500.0,0.0002053,2]
[366836533,1750499432905,-300.0,0.0002053,2]
[366836535,1750499432915,-151.0,0.0002053,2]
[366836537,1750499432925,-500.0,0.0002053,2]
[366836539,1750499432934,-300.0,0.0002053,2]
[366836541,1750499432943,-151.0,0.0002053,2]
[366836543,1750499432952,-500.0,0.0002053,2]
[366836545,1750499432961,-300.0,0.0002053,2]
[366836547,1750499432970,-259.20877868,0.0002053,2]
[366836549,1750499432980,-500.0,0.0002053,2]
[366836551,1750499432989,-300.0,0.0002053,2]
[366836553,1750499432999,-500.0,0.0002053,2]
[366836555,1750499433008,-300.0,0.0002053,2]
[366836557,1750499433017,-500.0,0.0002053,2]
[366836559,1750499433027,-300.0,0.0002053,2]
[366836561,1750499433036,-500.0,0.0002053,2]
[366836563,1750499433046,-300.0,0.0002053,2]
[366836565,1750499433056,-500.0,0.0002053,2]
[366836566,1750499433066,-300.0,0.0002053,2]
[366836568,1750499433076,-300.0,0.0002053,2]
[366836570,1750499433088,-300.0,0.0002053,2]
[366836572,1750499433097,-300.0,0.0002053,2]
[366836574,1750499433107,-207.4,0.0002053,2]
[366836576,1750499433116,-300.0,0.0002053,2]
[366836578,1750499433126,-300.0,0.0002053,2]
[366836580,1750499433136,-300.48,0.0002053,2]
[366836582,1750499433145,-249.2,0.00020531,2]
[366836584,1750499433157,-251.44,0.00020531,2]
[366836586,1750499433167,-304.66,0.00020531,2]
[366836588,1750499433178,-251.21,0.00020531,2]
[366836590,1750499433189,-305.38,0.00020531,2]
[366836592,1750499433202,-252.13,0.00020533,2]
[366836594,1750499433211,-247.45,0.00020533,2]
[366836596,1750499433221,-303.98,0.00020536,2]
[366836598,1750499433231,-500.0,0.00020544,2]
[366836600,1750499433243,-253.79,0.00020549,2]
[366836601,1750499433254,-245.39,0.00020557,2]
[366836602,1750499433264,-249.42,0.00020557,2]
[366836603,1750499433278,-300.84,0.00020583,2]
[366836604,1750499433288,-318.39745197,0.00020585,2]
[366836605,1750499433297,-1894.0,0.00020601,2]
[366836606,1750499433306,-3166.38,0.00020647,2]
[366836607,1750499433316,-500.0,0.00020673,2]
[366836608,1750499433326,-2606.67,0.00020682,2]
[366836609,1750499433337,-965.48,0.00020775,2]
[366836610,1750499433347,-177.0,0.0002081,2]
[366836611,1750499433361,-6686.91098821,0.00020822,2]
[366836612,1750499433375,-1585.53784902,0.00020822,2]
[366836613,1750499433388,-2802.95532478,0.00020822,2]
[366836614,1750499433426,-4205.85684801,0.00020822,2]
[366836615,1750499433456,-6357.34204175,0.00020822,2]
[366836616,1750499433469,-404.35360807,0.00020822,2]
[366836617,1750499433483,-4681.86334016,0.00020822,2]
[366836618,1750499433494,-252.3,0.00020843,2]
[366836619,1750499433504,-245.1,0.00020843,2]
[366836620,1750499433515,-253.98,0.00020853,2]
[366836621,1750499433525,-186.91,0.00020882,2]
[366836622,1750499433535,-1282.51,0.00020893,2]
[366836623,1750499433545,-1679.26,0.00020932,2]
[366836624,1750499433555,-437.98,0.00020934,2]
[366836625,1750499433565,-208.76,0.00020984,2]
[366836626,1750499433575,-303.82,0.00021155,2]
[366836627,1750499433587,-300.07,0.00021175,2]
[366836628,1750499433598,-177.0,0.00021175,2]
[366836629,1750499433608,-201.0,0.0002124,2]
[366836630,1750499433618,-168.0,0.00021337,2]
[366836631,1750499433630,-177.0,0.00021424,2]
[366836632,1750499433640,-1000.0,0.00021615,2]
[366836633,1750499433650,-701.0,0.000217,5]
[366836634,1750499433661,-907.48,0.00021821,2]
[366836635,1750499433671,-156.587,0.00021899,2]
[366836636,1750499433681,-215.0738,0.00021899,2]
[366836637,1750499433691,-260.34976721,0.00021947,2]
[366836638,1750499433701,-160.0,0.00022,2]
[366836639,1750499433711,-6426.55,0.00022087,2]
[366836640,1750499433721,-1002.0100331,0.0002214,2]
[366836641,1750499433731,-160.0,0.00022192,7]
[366836642,1750499433741,-300.0,0.00022192,7]
[366836643,1750499433751,-201.0,0.0002226,3]
[366836644,1750499433761,-177.0,0.0002236,2]
[366836645,1750499433770,-834.26476573,0.00022449,2]
[366836646,1750499433779,-500.0,0.00022583,2]
[366836647,1750499433789,-163.412,0.00022773,2]
[366836648,1750499433798,-1406.643,0.00022773,2]
[366836649,1750499433809,-245.7,0.000228,2]
[366836650,1750499433821,-2535.33448369,0.000229,8]
[366836651,1750499433831,-2535.33448343,0.000229,8]
[366836652,1750499433844,-2535.33448343,0.000229,8]
[366836653,1750499433855,-2535.33448343,0.000229,8]
[366836654,1750499433865,-2535.33448343,0.000229,8]
[366836655,1750499433875,-2535.33448343,0.000229,8]
[366836656,1750499433885,-180.82222,0.00022992,7]
[366836657,1750499433895,-180.82222,0.00022992,7]
[366836658,1750499433905,-151.0,0.00022992,7]
[366836659,1750499433915,-200.0,0.00022994,2]
[366836660,1750499433924,-741.36172,0.00023,2]
[366836661,1750499433935,-200.0,0.00023,2]
[366836662,1750499433945,-160.0,0.00023014,7]
[366836663,1750499433954,-2000.0,0.00023207,2]
[366836664,1750499433965,-200.0,0.00023207,2]
[366836665,1750499433975,-162.380719,0.00023268,2]
[366836666,1750499433986,-223.0315306,0.00023268,2]
[366836667,1750499433996,-201.0,0.0002328,5]
[366836668,1750499434006,-922.48,0.00023288,2]
[366836669,1750499434016,-150.0,0.00023338,2]
[366836670,1750499434027,-150.0,0.00023395,2]
[366836671,1750499434038,-150.0,0.00023411,2]
[366836672,1750499434047,-2458.85838772,0.00023417,9]
[366836673,1750499434082,-76.47609571,0.00023417,9]
[366836674,1750499434094,-150.0,0.00023451,2]
[366836675,1750499434104,-1282.51,0.00023505,2]
[366836676,1750499434114,-150.0,0.00023511,2]
[366836677,1750499434124,-106.48192745,0.00023533,2]
[366836678,1750499434136,-43.51807255,0.00023533,2]
[366836679,1750499434146,-150.0,0.00023544,2]
[366836680,1750499434156,-150.0,0.00023551,2]
[366836681,1750499434166,-150.0,0.00023565,2]
[366836682,1750499434176,-151.0,0.00023572,2]
[366836683,1750499434186,-150.0,0.00023578,2]
[366836684,1750499434200,-652.45034995,0.000236,2]
[366836685,1750499434253,-253.07282001,0.000236,2]
[366836686,1750499434292,-1094.47683004,0.000236,2]
[366836687,1750499434302,-300.29,0.00023608,2]
[366836688,1750499434312,-150.0,0.00023621,2]
[366836689,1750499434322,-150.0,0.00023638,2]
[366836690,1750499434332,-150.0,0.00023665,2]
[366836691,1750499434345,-150.0,0.00023668,2]
[366836692,1750499434355,-151.0,0.0002367,7]
[366836693,1750499434365,-143.53610213,0.0002367,7]
[366836694,1750499434377,-7.66511387,0.0002367,7]
[366836695,1750499434387,-151.0,0.0002367,7]
[366836696,1750499434397,-150.0,0.00023672,2]
[366836697,1750499434406,-111.87950558,0.00023676,2]
[366836698,1750499434418,-38.12049442,0.00023676,2]
[366836699,1750499434427,-150.0,0.00023693,2]
[366836700,1750499434437,-200.43,0.00023704,2]
[366836701,1750499434447,-150.0,0.00023704,2]
[366836702,1750499434457,-150.0,0.00023712,2]
[366836703,1750499434467,-150.0,0.00023718,2]
[366836704,1750499434476,-150.0,0.00023721,2]
[366836705,1750499434486,-150.0,0.00023722,2]
[366836706,1750499434497,-150.0,0.00023743,2]
[366836707,1750499434506,-150.0,0.00023757,2]
[366836708,1750499434516,-150.0,0.00023779,2]
[366836709,1750499434525,-151.0,0.000238,7]
[366836710,1750499434535,-151.0,0.000238,7]
[366836711,1750499434546,-151.0,0.000238,7]
[366836712,1750499434556,-180.82222,0.000238,7]
[366836713,1750499434566,-180.82222,0.000238,7]
[366836714,1750499434576,-151.0,0.000238,7]
[366836715,1750499434587,-151.0,0.000238,7]
[366836716,1750499434597,-138.70299466,0.000238,7]
[366836717,1750499438340,-150.0,0.00023213,2]
[366836718,1750499438350,-150.0,0.00023372,2]
[366836719,1750499438358,-150.0,0.00023563,2]
[366836720,1750499438366,-150.0,0.00023621,2]
[366836721,1750499438375,-131.83180434,0.000238,7]
[366836722,1750499438383,-270.534799,0.000238,7]
[366836723,1750499438390,-151.85221,0.000238,7]
[366836725,1750499438399,-150.0,0.00023808,2]
[366836726,1750499438409,-423.29,0.00023836,2]
[366836728,1750499438419,-150.0,0.00023837,2]
[366836730,1750499438428,-150.0,0.00023841,2]
[366836731,1750499438438,-150.0,0.00023856,2]
[366836732,1750499438447,-150.0,0.00023894,2]
[366836733,1750499438457,-150.0,0.00023901,2]
[366836734,1750499438467,-561.34750148,0.00023901,2]
[366836735,1750499438476,-5158.43884685,0.00023901,2]
[366836736,1750499438486,-776.38803417,0.00023904,2]
[366836737,1750499438495,-150.0,0.00023906,2]
[366836738,1750499438505,-5158.43884684,0.00023938,2]
[366836741,1750499438515,-150.0,0.00023947,2]
[366836748,1750499438736,-1000.0,0.00023947,2]
[366836749,1750499438766,-2500.0,0.00023947,2]
[366836750,1750499438776,-150.0,0.00023949,2]
[366836751,1750499438786,-150.0,0.00023963,2]
[366836752,1750499438796,-150.0,0.00023973,2]
[366836753,1750499438805,-5158.43884684,0.00023975,2]
[366836754,1750499438814,-150.0,0.00023975,2]
[366836755,1750499438823,-150.0,0.00023976,2]
[366836756,1750499438832,-776.38803417,0.00023981,2]
[366836757,1750499438842,-2726.4531,0.00023986,3]
[366836758,1750499438851,-150.0,0.00023991,2]
[366836759,1750499438860,-169.048,0.00023999,2]
[366836760,1750499438870,-151.0,0.00024,7]
[366836761,1750499438880,-151.0,0.00024,7]
[366836762,1750499438889,-304.26,0.00024,2]
[366836763,1750499438899,-247.92,0.00024,2]
[366836764,1750499438909,-151.0,0.00024,2]
[366836765,1750499438918,-87026.0,0.00024,2]
[366836766,1750499438928,-150.0,0.00024001,2]
[366836767,1750499438938,-2535.33448343,0.00024003,10]
[366836768,1750499438947,-150.0,0.00024006,2]
[366836769,1750499438956,-5158.43884684,0.00024011,2]
[366836770,1750499438966,-151.0,0.00024021,7]
[366836771,1750499438975,-151.0,0.00024021,7]
[366836772,1750499438985,-150.0,0.00024024,2]
[366836773,1750499438994,-150.0,0.00024032,2]
[366836774,1750499439004,-150.0,0.0002404,2]
[366836775,1750499439013,-150.0,0.00024042,2]
[366836776,1750499439023,-150.0,0.00024043,2]
[366836777,1750499439032,-500.0,0.00024047,2]
[366836778,1750499439041,-500.0,0.00024047,2]
[366836779,1750499439051,-500.0,0.00024047,2]
[366836780,1750499439061,-500.0,0.00024047,2]
[366836781,1750499439070,-500.0,0.00024047,2]
[366836782,1750499439080,-500.0,0.00024047,2]
[366836783,1750499439090,-500.0,0.00024047,2]
[366836784,1750499439099,-500.0,0.00024047,2]
[366836785,1750499439109,-500.0,0.00024047,2]
[366836786,1750499439119,-500.0,0.00024047,2]
[366836787,1750499439128,-500.0,0.00024047,2]
[366836788,1750499439138,-500.0,0.00024047,2]
[366836789,1750499439147,-500.0,0.00024047,2]
[366836790,1750499439157,-500.0,0.00024047,2]
[366836791,1750499439166,-500.0,0.00024047,2]
[366836792,1750499439175,-500.0,0.00024047,2]
[366836793,1750499439184,-500.0,0.00024047,2]
[366836794,1750499439195,-500.0,0.00024047,2]
[366836795,1750499439205,-500.0,0.00024047,2]
[366836796,1750499439214,-500.0,0.00024047,2]
[366836797,1750499439224,-500.0,0.00024047,2]
[366836798,1750499439235,-500.0,0.00024047,2]
[366836799,1750499439244,-500.0,0.00024047,2]
[366836800,1750499439253,-500.0,0.00024047,2]
[366836801,1750499439262,-500.0,0.00024047,2]
[366836802,1750499439272,-500.0,0.00024047,2]
[366836803,1750499439281,-500.0,0.00024047,2]
[366836804,1750499439290,-500.0,0.00024047,2]
[366836805,1750499439300,-500.0,0.00024047,2]
[366836806,1750499439309,-500.0,0.00024047,2]
[366836807,1750499439318,-500.0,0.00024047,2]
[366836808,1750499439327,-500.0,0.00024047,2]
[366836809,1750499439336,-500.0,0.00024047,2]
[366836810,1750499439346,-500.0,0.00024047,2]
[366836811,1750499439355,-500.0,0.00024047,2]
[366836812,1750499439365,-500.0,0.00024047,2]
[366836813,1750499439375,-500.0,0.00024047,2]
[366836814,1750499439384,-500.0,0.00024047,2]
[366836815,1750499439394,-500.0,0.00024047,2]
[366836816,1750499439403,-500.0,0.00024047,2]
[366836817,1750499439413,-500.0,0.00024047,2]
[366836818,1750499439422,-500.0,0.00024047,2]
[366836819,1750499439432,-500.0,0.00024047,2]
[366836820,1750499439442,-500.0,0.00024047,2]
[366836821,1750499439451,-500.0,0.00024047,2]
[366836822,1750499439461,-500.0,0.00024047,2]
[366836823,1750499439471,-500.0,0.00024047,2]
[366836824,1750499439480,-500.0,0.00024047,2]
[366836825,1750499439489,-500.0,0.00024047,2]
[366836826,1750499439498,-500.0,0.00024047,2]
[366836827,1750499439507,-500.0,0.00024047,2]
[366836828,1750499439516,-753.0,0.00024047,2]
[366836829,1750499439525,-500.0,0.00024047,2]
[366836830,1750499439534,-500.0,0.00024047,2]
[366836831,1750499439543,-500.0,0.00024047,2]
[366836832,1750499439554,-500.0,0.00024047,2]
[366836833,1750499439563,-500.0,0.00024047,2]
[366836834,1750499439572,-500.0,0.00024047,2]
[366836835,1750499439581,-500.0,0.00024047,2]
[366836836,1750499439591,-500.0,0.00024047,2]
[366836837,1750499439600,-500.0,0.00024047,2]
[366836838,1750499439609,-500.0,0.00024047,2]
[366836839,1750499439618,-500.0,0.00024047,2]
[366836840,1750499439629,-500.0,0.00024047,2]
[366836841,1750499439638,-500.0,0.00024047,2]
[366836842,1750499439647,-500.0,0.00024047,2]
[366836843,1750499439656,-500.0,0.00024047,2]
[366836844,1750499439665,-500.0,0.00024047,2]
[366836845,1750499439675,-500.0,0.00024047,2]
[366836846,1750499439684,-500.0,0.00024047,2]
[366836847,1750499439693,-500.0,0.00024047,2]
[366836848,1750499439702,-500.0,0.00024047,2]
[366836849,1750499439712,-500.0,0.00024047,2]
[366836850,1750499439721,-500.0,0.00024047,2]
[366836851,1750499439730,-500.0,0.00024047,2]
[366836852,1750499439739,-500.0,0.00024047,2]
[366836853,1750499439748,-500.0,0.00024047,2]
[366836854,1750499439758,-500.0,0.00024047,2]
[366836855,1750499439767,-500.0,0.00024047,2]
[366836856,1750499439776,-500.0,0.00024047,2]
[366836857,1750499439787,-500.0,0.00024047,2]
[366836858,1750499439797,-500.0,0.00024047,2]
[366836859,1750499439807,-500.0,0.00024047,2]
[366836860,1750499439817,-500.0,0.00024047,2]
[366836861,1750499439827,-500.0,0.00024047,2]
[366836862,1750499439837,-500.0,0.00024047,2]
[366836863,1750499439847,-500.0,0.00024047,2]
[366836864,1750499439856,-500.0,0.00024047,2]
[366836865,1750499439866,-500.0,0.00024047,2]
[366836866,1750499439877,-500.0,0.00024047,2]
[366836867,1750499439886,-500.0,0.00024047,2]
[366836868,1750499439896,-500.0,0.00024047,2]
[366836870,1750499439906,-500.0,0.00024047,2]
[366836871,1750499439915,-500.0,0.00024047,2]
[366836872,1750499439925,-500.0,0.00024047,2]
[366836873,1750499439934,-500.0,0.00024047,2]
[366836874,1750499439944,-500.0,0.00024047,2]
[366836875,1750499439954,-500.0,0.00024047,2]
[366836876,1750499439964,-500.0,0.00024047,2]
[366836878,1750499439973,-500.0,0.00024047,2]
[366836879,1750499439983,-500.0,0.00024047,2]
[366836880,1750499439993,-500.0,0.00024047,2]
[366836881,1750499440004,-500.0,0.00024047,2]
[366836882,1750499440014,-500.0,0.00024047,2]
[366836883,1750499440024,-500.0,0.00024047,2]
[366836885,1750499440033,-500.0,0.00024047,2]
[366836886,1750499440043,-500.0,0.00024047,2]
[366836887,1750499440052,-500.0,0.00024047,2]
[366836888,1750499440062,-500.0,0.00024047,2]
[366836889,1750499440071,-500.0,0.00024047,2]
[366836890,1750499440080,-500.0,0.00024047,2]
[366836891,1750499440090,-500.0,0.00024047,2]
[366836892,1750499440100,-500.0,0.00024047,2]
[366836893,1750499440110,-500.0,0.00024047,2]
[366836894,1750499440119,-500.0,0.00024047,2]
[366836895,1750499440129,-500.0,0.00024047,2]
[366836896,1750499440138,-500.0,0.00024047,2]
[366836897,1750499440147,-500.0,0.00024047,2]
[366836898,1750499440156,-500.0,0.00024047,2]
[366836899,1750499440166,-500.0,0.00024047,2]
[366836900,1750499440175,-500.0,0.00024047,2]
[366836901,1750499440185,-500.0,0.00024047,2]
[366836902,1750499440199,-500.0,0.00024047,2]
[366836903,1750499440209,-500.0,0.00024047,2]
[366836904,1750499440218,-500.0,0.00024047,2]
[366836905,1750499440228,-500.0,0.00024047,2]
[366836906,1750499440239,-500.0,0.00024047,2]
[366836907,1750499440248,-500.0,0.00024047,2]
[366836908,1750499440258,-500.0,0.00024047,2]
[366836909,1750499440267,-500.0,0.00024047,2]
[366836910,1750499440277,-5158.43884684,0.00024048,2]
[366836911,1750499440287,-473.0,0.00024049,2]
[366836912,1750499440297,-776.38803417,0.00024059,2]
[366836913,1750499440307,-151.0,0.0002406,7]
[366836914,1750499440316,-151.0,0.0002406,7]
[366836915,1750499440326,-151.564438,0.0002406,7]
[366836916,1750499440336,-150.0,0.00024065,2]
[366836917,1750499440346,-150.0,0.0002408,2]
[366836918,1750499440356,-5000.0,0.00024084,2]
[366836919,1750499440365,-5158.43884684,0.00024085,2]
[366836920,1750499440375,-150.0,0.00024089,2]